Cogmind - Beta 9.1 @@@ ROGUE MODE // 2019.11.06 @ 13:11:03 Player: ArElGee Result: Destroyed by Y-72 Warden with Quantum Rifle Performance ------------- Evolutions (7) 3500 Regions Visited (25) 5000 Robots Destroyed (132) 660 Value Destroyed (3870) 3870 Prototype IDs (68) 1360 Alien Tech Used (0) 0 Bonus (5302) 5302 TOTAL SCORE: 19692 Bonus ------- High Alert Combat Kills 405 Follower Combat Kills 2609 Network Hubs Disabled 200 Aligned with FarCom 300 Met Data Miner 300 Met Imprinter 300 Was Imprinted 300 Met Zhirov 300 Built Enhanced Grunts 300 A7 Reached Mainframe 300 Friendly Fire -12 Cogmind --------- Core Integrity 0/1300 Matter 19/300 Energy 34/100 System Corruption 7% Temperature Cool (12) Location -3/Research Parts ------- Power (2) Propulsion (5) Gyrokinetic Inverter Utility (11) Advanced Terrain Scan Processor Improved Core Analyzer Advanced Armor Integrity Analyzer Weapon (3) Dispersion Rifle Inventory (4) Quantum Capacitor Peak State ------------ Power Micro Fission Core Light Antimatter Reactor Propulsion Combat Airjet Combat Airjet Combat Gravmag System Improved Antigrav System Improved Gyrokinetic Inverter Utility Improved Signal Interpreter Experimental Terrain Scanner Advanced Terrain Scan Processor Improved Targeting Computer Improved Targeting Computer Improved Melee Analysis Suite Improved Core Analyzer Advanced Armor Integrity Analyzer Hardened Medium Armor Plating Improved System Restoration Module Weapon KE Penetrator Plasma Sword Inventory Quantum Capacitor Improved Transmission Jammer Hypervelocity Mass Driver [Rating: 101] Favorites ----------- Power Light Nuclear Core Engine Cooled Deuterium Engine Power Core Light Nuclear Core Reactor Light Antimatter Reactor Propulsion Combat Airjet Treads Light Treads Leg Potential Leg Wheel Wheel Hover Unit Combat Airjet Flight Unit Field Propulsion Drive Utility Large Storage Unit Device Long-range Terrain Scanner Storage Large Storage Unit Processor Advanced Terrain Scan Processor Hackware System Shield Protection Hardened Medium Armor Plating Weapon Assault Rifle Energy Gun EM Pulse Gun Energy Cannon EM Pulse Cannon Ballistic Gun Assault Rifle Ballistic Cannon Bore Cannon Launcher Rocket Launcher Special Weapon Mining Laser Impact Weapon Impact Mace Slashing Weapon Katana Piercing Weapon Heavy Pick Build | -11 -10 -10 -10 -9 -8 -8 -7 -7 -7 -7 -6 -6 -6 -6 -6 -5 -5 -5 -5 -5 -5 -4 -4 -4 -3 ------- Run | Scr Mat Min Exi Min Mat Sto Fac Low Low Dat Pro Fac Low Low Zio Pro Fac Ext Cet Arc Hub Fac Upp Upp Res Slots Evolved 14 | . . . . . 4 . 2 . . . . 2 . . . . 2 . . . . 2 . . 2 Power 1 | . . . . . . . . . . . . 1 . . . . . . . . . . . . . Propulsion 3 | . . . . . . . 1 . . . . 1 . . . . 1 . . . . . . . . Utility 9 | . . . . . 4 . 1 . . . . . . . . . 1 . . . . 2 . . 1 Weapon 1 | . . . . . . . . . . . . . . . . . . . . . . . . . 1 Parts Attached 270 | 9 21 2 4 2 10 17 19 10 8 . 3 15 8 8 3 12 33 8 4 . 4 57 2 1 10 Power 26 | 1 2 . . . 1 2 1 1 . . . 3 1 . 1 1 4 1 . . 1 6 . . . Engine 11 | 1 . . . . 1 1 1 1 . . . 2 . . 1 1 2 . . . . . . . . Core 11 | . 2 . . . . 1 . . . . . 1 1 . . . 1 1 . . 1 3 . . . Reactor 4 | . . . . . . . . . . . . . . . . . 1 . . . . 3 . . . Propulsion 63 | 4 8 . 3 . . . 5 1 . . . 1 1 1 . 4 12 1 1 . 1 17 . . 3 Treads 8 | 2 2 . . . . . . . . . . . . . . 4 . . . . . . . . . Leg 4 | . 2 . 2 . . . . . . . . . . . . . . . . . . . . . . Wheel 7 | 2 4 . 1 . . . . . . . . . . . . . . . . . . . . . . Hover 37 | . . . . . . . 5 1 . . . 1 1 1 . . 12 1 1 . 1 12 . . 1 Flight 7 | . . . . . . . . . . . . . . . . . . . . . . 5 . . 2 Utility 114 | 2 5 . 1 . 6 7 6 6 5 . 2 8 4 4 1 7 16 5 . . 1 25 1 . 2 Device 57 | 1 2 . . . 1 1 1 6 3 . 2 4 2 3 . 4 9 3 . . . 12 1 . 2 Storage 6 | 1 2 . 1 . 1 . 1 . . . . . . . . . . . . . . . . . . Processor 13 | . . . . . 1 1 1 . . . . 2 . . . . 3 . . . . 5 . . . Hackware 7 | . . . . . 1 2 1 . . . . . . . . . 2 . . . . 1 . . . Protection 31 | . 1 . . . 2 3 2 . 2 . . 2 2 1 1 3 2 2 . . 1 7 . . . Artifact . | . . . . . . . . . . . . . . . . . . . . . . . . . . Weapon 67 | 2 6 2 . 2 3 8 7 2 3 . 1 3 2 3 1 . 1 1 3 . 1 9 1 1 5 Energy Gun 9 | . 1 . . . . 1 . 1 . . . . . . . . . . 1 . . 3 . . 2 Energy Cannon 5 | . . . . . . 2 . . . . . . . . . . . . . . . 1 1 1 . Ballistic Gun 23 | 2 5 1 . 1 2 3 3 . 1 . . . 1 1 . . . . 1 . 1 1 . . . Ballistic Cannon 2 | . . . . . . . . . . . . . . . . . . 1 . . . . . . 1 Launcher 11 | . . 1 . . . 1 3 . 1 . . . . 1 . . . . 1 . . 1 . . 2 Special Weapon 2 | . . . . 1 1 . . . . . . . . . . . . . . . . . . . . Impact Weapon 3 | . . . . . . 1 1 1 . . . . . . . . . . . . . . . . . Slashing Weapon 6 | . . . . . . . . . 1 . 1 . . . . . 1 . . . . 3 . . . Piercing Weapon 6 | . . . . . . . . . . . . 3 1 1 1 . . . . . . . . . . Special Melee Weapon . | . . . . . . . . . . . . . . . . . . . . . . . . . . Unidentified Prototypes 14 | . . . . . . 1 2 . . . . 1 . . . . 4 1 2 . . 3 . . . Parts Lost 75 | . 3 . . . 6 3 2 . 1 . . 1 2 . . 6 10 . . . 1 17 6 . 17 Power 9 | . . . . . 1 . . . . . . 1 . . . 1 2 . . . . 2 1 . 1 Propulsion 20 | . 1 . . . . . . . . . . . 1 . . 3 4 . . . . 4 1 . 6 Utility 30 | . . . . . 3 1 1 . 1 . . . 1 . . 2 4 . . . 1 9 3 . 4 Weapon 16 | . 2 . . . 2 2 1 . . . . . . . . . . . . . . 2 1 . 6 Highest Loss Streak 14 | . 1 . . . 6 2 1 . 1 . . 1 1 . . 4 10 . . . 1 14 6 . 10 Average Slot Usage (%) 94 | . 96 100 99 100 95 90 92 100 99 100 100 98 94 97 100 96 95 100 100 100 99 87 95 69 41 Engine 3 | . 1 . . . 1 6 7 7 7 7 7 6 6 6 9 12 7 . . . . . . . . Core 6 | . 12 14 14 14 7 2 . . . . . 6 6 6 2 . 2 10 11 11 11 7 5 5 . Treads 2 | . 9 . . . . . . . . . . . . . . 18 8 . . . . . . . . Leg 5 | . 7 14 11 28 18 18 14 . . . . . . . . . . . . . . . . . . Wheel 2 | . 10 14 16 . . . . . . . . . . . . . . . . . . . . . . Hover 13 | . . . . . . . 5 23 23 23 23 26 22 24 26 5 16 29 29 29 29 17 25 21 6 Device 7 | . 5 . . . 9 6 2 7 6 . 7 10 13 13 13 7 10 11 11 11 10 9 8 . . Storage 10 | . 14 14 14 14 18 18 15 15 15 15 15 13 13 13 13 13 8 5 5 5 5 3 . . . Processor 13 | . . . . . 8 2 13 15 15 15 15 15 17 13 13 13 13 23 23 23 23 23 36 36 25 Hackware 3 | . . . . . 5 7 8 7 7 7 7 3 . . . . 8 . . . . 3 . . . Protection 7 | . 5 14 14 14 9 13 7 7 7 15 7 1 . 6 6 11 2 5 5 5 5 8 4 . . Energy Gun 1 | . 1 . . . . 5 . 5 . . . . . . . . . . 2 5 4 1 . . . Ballistic Gun 7 | . 25 27 28 25 12 6 5 7 7 7 7 . . . . . . . 1 . . 1 . . . Slashing Weapon 1 | . . . . . . . . . . . 6 . . . . . 1 5 5 5 5 4 5 5 . Piercing Weapon 3 | . . . . . . . . . . . . 12 12 12 13 13 9 2 . . . . . . . Naked Turns . | . . . . . . . . . . . . . . . . . . . . . . . . . . Heaviest Build 76 | 12 28 28 44 44 54 76 72 55 50 50 49 61 50 56 61 67 62 45 43 41 50 74 42 17 23 Greatest Support 110 | 40 40 10 60 60 60 60 60 58 52 52 52 63 63 63 63 88 99 105 110 110 110 104 103 81 81 Greatest Overweight (x) 4 | . 2 2 4 . . 1 1 . . . . . 1 . . 2 1 . . . . 2 . . 2 Average Overweight (x) . | . 1 2 . . . . . . . . . . . . . . . . . . . . . . . Largest Inventory Capacity 16 | 6 10 10 12 12 16 16 16 14 14 14 14 14 14 14 14 14 14 10 10 10 10 10 4 4 4 Average Capacity 10 | 5 6 10 11 12 15 16 14 14 14 14 14 14 14 14 14 14 12 10 10 10 10 8 4 4 4 Most Carried 16 | 6 10 10 11 12 13 16 16 14 14 13 14 14 14 14 14 14 14 10 10 10 10 10 4 4 4 Average Carried 9 | 5 6 10 9 11 11 13 13 12 13 13 13 13 12 13 13 12 10 9 9 10 9 7 4 4 2 Final Capacity 16 | 6 10 10 12 12 16 16 14 14 14 14 14 14 14 14 14 14 10 10 10 10 10 4 4 4 4 Final Carried 16 | 6 10 10 11 12 11 16 12 14 13 13 14 14 14 14 14 11 10 10 10 10 10 4 4 4 2 Class Distribution -------------------- 48% | Mutant 19% | Messiah-Mutant 12% | Scavenger-Scout 6% | Messiah-Scout 3% | Messiah-Assassin 3% | Messiah-Ninja 3% | Scavenger-Mutant Dominant Class ---------------- Mutant | -10/Materials Mutant | -10/Mines Mutant | -10/Exiles Mutant | -9/Mines Mutant | -8/Materials Mutant | -8/Storage Mutant | -7/Factory Scavenger-Mutant | -7/Lower Caves Scavenger-Scout | -7/Lower Caves Scavenger-Mutant | -7/Data Miner Scavenger-Scout | -6/Proximity Caves Scavenger-Scout | -6/Factory Scavenger-Scout | -6/Lower Caves Scavenger-Scout | -6/Lower Caves Scavenger-Scout | -6/Zion Messiah-Mutant | -5/Proximity Caves Messiah-Scout | -5/Factory Messiah-Ninja | -5/Extension Messiah-Mutant | -5/Cetus Messiah-Mutant | -5/Archives Messiah-Mutant | -5/Hub_04(d) Messiah-Mutant | -4/Factory Messiah-Mutant | -4/Upper Caves Messiah-Mutant | -4/Upper Caves Messiah-Mutant | -3/Research Resources | -11 -10 -10 -10 -9 -8 -8 -7 -7 -7 -7 -6 -6 -6 -6 -6 -5 -5 -5 -5 -5 -5 -4 -4 -4 -3 ----------- Run | Scr Mat Min Exi Min Mat Sto Fac Low Low Dat Pro Fac Low Low Zio Pro Fac Ext Cet Arc Hub Fac Upp Upp Res Matter Collected 3804 | 338 447 204 115 44 139 282 492 103 73 . 89 110 109 106 20 125 300 112 40 12 18 267 92 78 89 Remotely 138 | 138 . . . . . . . . . . . . . . . . . . . . . . . . . Salvage Created 4243 | 104 641 145 . . 162 499 871 28 30 . 50 117 80 130 . 140 341 215 . . 89 454 . . 147 Parts 270 | 1 50 20 . . 7 39 54 2 . . 1 9 6 11 . 11 15 9 . . 9 18 . . 8 Haulers Intercepted 3 | . 1 . . . . 1 1 . . . . . . . . . . . . . . . . . . Recyclers Shooed 4 | . . . . . 1 . 2 . . . . . . . . . . 1 . . . . . . . Parts Field Recycled . | . . . . . . . . . . . . . . . . . . . . . . . . . . Retrieved Matter . | . . . . . . . . . . . . . . . . . . . . . . . . . . Parts Self-Destructed 45 | . . . . . . . . 2 2 . 12 . 5 8 2 12 . . . . . . 2 . . Prevented 3 | . . . . . . . . . . . . . . . . 3 . . . . . . . . . Kills | -11 -10 -10 -10 -9 -8 -8 -7 -7 -7 -7 -6 -6 -6 -6 -6 -5 -5 -5 -5 -5 -5 -4 -4 -4 -3 ------- Run | Scr Mat Min Exi Min Mat Sto Fac Low Low Dat Pro Fac Low Low Zio Pro Fac Ext Cet Arc Hub Fac Upp Upp Res Combat Hostiles Destroyed 91 | 3 16 12 . . 3 13 16 1 1 . . 1 1 5 . 3 4 1 . . . 5 . . 6 Melee 15 | . . . . . . . . . . . . 1 . 1 . 3 4 1 . . . 3 . . 2 Guns 42 | 3 16 9 . . 3 7 . 1 . . . . 1 . . . . . . . . 1 . . 1 Cannons 5 | . . . . . . 2 3 . . . . . . . . . . . . . . . . . . AOE 28 | . . 3 . . . 4 13 . 1 . . . . 4 . . . . . . . . . . 3 Classes Destroyed 18 | 2 5 . . . . 3 4 . . . . . 1 . . 2 . . . . 1 . . . . Worker 10 | . . . . . . 1 3 . . . . 1 . . . . 2 . . . 1 1 . . 1 Builder 6 | . . . . . . . 5 . . . . . . . . . . . . . . . . . 1 Tunneler 1 | . 1 . . . . . . . . . . . . . . . . . . . . . . . . Hauler 3 | . 1 . . . . 1 1 . . . . . . . . . . . . . . . . . . Recycler 9 | 1 2 . . . . . 4 . . . . . . . . . . 1 . . . 1 . . . Mechanic 1 | . . . . . . . 1 . . . . . . . . . . . . . . . . . . Operator 2 | . . . . . . . . . . . . . . . . . . . . . 2 . . . . Watcher 9 | . 2 . . . . . 2 . . . . 1 . . . . 2 . . . 1 . . . 1 Swarmer 39 | . 8 12 . . . 6 4 1 1 . . . . 4 . . . . . . . . . . 3 Grunt 23 | . 8 . . . 3 3 8 . . . . . . . . 1 . . . . . . . . . Brawler 2 | . . . . . . 1 1 . . . . . . . . . . . . . . . . . . Duelist 1 | . . . . . . . 1 . . . . . . . . . . . . . . . . . . Sentry 7 | . . . . . . 3 1 . . . . 1 . . . . . 1 . . . 1 . . . Hunter 6 | . . . . . . . . . . . . . . . . 1 2 . . . . 1 . . 2 Programmer 8 | . . . . . . . 1 . . . . . . 1 . . 2 . . . . 3 . . 1 Master Thief 1 | . . . . . . . . . . . . . . . . 1 . . . . . . . . . Assembled 3 | 3 . . . . . . . . . . . . . . . . . . . . . . . . . Mutant 1 | . . . . . . . . . . . . . 1 . . . . . . . . . . . . Best Kill Streak 9 | 2 5 3 . . 3 5 9 1 1 . . 1 1 5 . 2 5 1 . . 2 1 . . 5 Combat Bots Only 5 | 2 5 3 . . 3 4 5 1 1 . . 1 1 5 . 2 3 1 . . . 1 . . 3 Max Kills in Single Turn 4 | 1 2 2 . . 1 4 3 1 1 . . 1 1 4 . 1 1 1 . . 1 1 . . 2 Gunslinging 1 | . . 1 . . . . . . . . . . . . . . . . . . . . . . . Exploded 4 | . . 2 . . . 3 2 . 1 . . . . 4 . . . . . . . . . . 1 Melee 1 | . . . . . . . . . . . . 1 . 1 . 1 1 1 . . . 1 . . 1 Uniques/NPCs Destroyed . | . . . . . . . . . . . . . . . . . . . . . . . . . . Combat | -11 -10 -10 -10 -9 -8 -8 -7 -7 -7 -7 -6 -6 -6 -6 -6 -5 -5 -5 -5 -5 -5 -4 -4 -4 -3 -------- Run | Scr Mat Min Exi Min Mat Sto Fac Low Low Dat Pro Fac Low Low Zio Pro Fac Ext Cet Arc Hub Fac Upp Upp Res Damage Taken 13640 | 43 748 190 . . 497 719 874 182 163 . 76 314 32 45 . 912 1035 92 20 250 672 3236 834 . 2706 Core 3030 | . 146 41 . . 33 58 56 . 33 . . 49 . . . . 162 24 . . 203 774 144 . 1307 Absorbed by Shields 65 | . . . . . . . . . . . . . . . . . . 47 18 . . . . . . Core Remaining (%) 67 | 100 . . . 25 . 83 . . . . 87 . . . . 94 . . . . 61 . . 20 . Volleys Fired 255 | 8 66 23 . 6 14 30 46 5 2 . . . 3 1 . . . 5 5 . 2 14 . . 25 Largest 2 | 2 2 2 . 2 2 2 2 2 1 . . . 1 1 . . . 1 1 . 1 1 . . 1 Hottest 240 | 40 60 46 . 100 100 103 86 92 39 . . . 33 39 . . . 57 240 . 35 88 . . 88 Shots Fired 399 | 16 131 44 . 9 22 51 59 10 2 . . . 3 1 . . . 5 5 . 2 14 . . 25 Gun 297 | 16 131 42 . 6 16 43 14 10 . . . . 3 . . . . . 1 . 2 8 . . 5 Cannon 44 | . . . . . . 6 19 . . . . . . . . . . 5 . . . 5 . . 9 Launcher 49 | . . 2 . . . 2 26 . 2 . . . . 1 . . . . 4 . . 1 . . 11 Special 9 | . . . . 3 6 . . . . . . . . . . . . . . . . . . . . Kinetic 258 | 16 117 42 . 6 16 25 14 5 . . . . 3 . . . . 5 . . 2 . . . 7 Thermal 38 | . 14 . . 3 6 . . 5 . . . . . . . . . . 1 . . 4 . . 5 Explosive 41 | . . 2 . . . 2 26 . . . . . . . . . . . . . . . . . 11 Electromagnetic 62 | . . . . . . 24 19 . 2 . . . . 1 . . . . 4 . . 10 . . 2 Robot Hit Streak 13 | 7 11 6 . 10 5 10 10 1 2 . . . 3 4 . . . 2 . . 3 4 . . 13 Robot Miss Streak 6 | 2 3 4 . 1 1 6 3 3 1 . . . . . . . . 3 . . . 1 . . 2 Penetration Max 1 | . . . . . . . . . . . . . 1 . . . . 1 . . . . . . . Secondary Targets 7 | . 2 1 . . . 4 . . . . . . . . . . . . . . . . . . . Max Gunslinging Chain 1 | . 1 1 . . . 1 . . . . . . . . . . . . . . . . . . . Capacitor 2 | . . . . . . . . . . . . . . . . . . . . . . . . . 2 Shots Hit Robots 352 | 10 91 25 . 5 13 29 36 4 1 . 1 6 6 3 . 11 27 13 . . 3 40 . . 28 Core Hits 226 | 6 34 12 . . 7 20 67 2 1 . 1 4 2 6 . 6 12 4 4 . 4 13 . . 21 Critical Hits 14 | . 2 . . . . . 1 . . . . . 2 . . 1 1 1 . . . 1 . . 5 Critical Kills 3 | . 1 . . . . . . . . . . . 1 . . 1 . . . . . . . . . Critical Parts Destroyed 10 | . 1 . . . . . 1 . . . . . 1 . . . 1 . . . . 1 . . 5 Melee Attacks 316 | . . . . . . 3 3 6 8 . 12 66 18 14 . 30 55 14 1 . 11 67 . . 8 Impact 20 | . . . . . . 3 3 6 8 . . . . . . . . . . . . . . . . Slashing 111 | . . . . . . . . . . . 12 1 . . . . . 11 1 . 11 67 . . 8 Piercing 185 | . . . . . . . . . . . . 65 18 14 . 30 55 3 . . . . . . . Sneak Attacks 15 | . . . . . . . 1 . . . . 2 . . . . 5 4 . . 1 2 . . . Combat Hostiles 1 | . . . . . . . . . . . . . . . . . . 1 . . . . . . . Follow-up Attacks 8 | . . . . . . . . . . . . . 1 . . 3 3 1 . . . . . . . Damage Inflicted 12939 | 109 1026 520 . 58 227 824 2755 47 152 . 132 303 147 380 . 301 1103 822 186 . 322 1792 . . 1733 Guns 2588 | 109 1026 309 . 58 227 361 104 47 . . . . 33 . . . . . . . 24 197 . . 93 Cannons 935 | . . . . . . 156 408 . . . . . . . . . . 139 . . . 148 . . 84 Explosions 4892 | . . 211 . . . 307 2124 . 152 . . . . 309 . . . . 186 . 130 279 . . 1194 Melee 4499 | . . . . . . . 119 . . . 132 303 114 71 . 301 1103 668 . . 168 1168 . . 352 Ramming 25 | . . . . . . . . . . . . . . . . . . 15 . . . . . . 10 Kinetic 2257 | 109 917 309 . 58 227 226 104 27 . . . . 33 . . . . 139 . . 24 . . . 84 Thermal 628 | . 109 . . . . . . 20 . . . . . 211 . . . . . . . 195 . . 93 Explosive 3994 | . . 211 . . . 307 2124 . . . . . . . . . . . . . . 158 . . 1194 Electromagnetic 1536 | . . . . . . 291 408 . 152 . . . . 98 . . . . 186 . 130 271 . . . Impact 119 | . . . . . . . 119 . . . . . . . . . . . . . . . . . . Slashing 2318 | . . . . . . . . . . . 132 . . . . . . 498 . . 168 1168 . . 352 Piercing 2062 | . . . . . . . . . . . . 303 114 71 . 301 1103 170 . . . . . . . Highest Corruption 7 | . . . . . . 3 . . . . . . . . . . 1 1 1 1 5 4 4 1 7 Average Corruption 2 | . . . . . . 3 . . . . . . . . . . 1 1 1 1 2 3 2 1 5 Corruption Purged 4 | . . . . . . . . . . . . . . . . . . . . . . 1 3 . . Effects 39 | . . . . . . 15 . . . . . . . . . . 4 2 . . 4 10 1 . 3 Message Errors 13 | . . . . . . 5 . . . . . . . . . . 2 1 . . 3 1 1 . . Matter Fused 7 | . . . . . . . . . . . . . . . . . . . . . . 4 . . 3 Heat Flow Errors 2 | . . . . . . 1 . . . . . . . . . . . . . . . 1 . . . Energy Discharges 6 | . . . . . . 4 . . . . . . . . . . . . . . . 2 . . . Data Loss (minor) 4 | . . . . . . . . . . . . . . . . . . 1 . . 1 2 . . . Targeting Errors 6 | . . . . . . 4 . . . . . . . . . . 2 . . . . . . . . Weapon Failures 1 | . . . . . . 1 . . . . . . . . . . . . . . . . . . . Overload Shots 1 | . . . . . . . . . . . . . . . . . . . 1 . . . . . . Overflow Damage 655 | . . 13 . . . 43 25 . 12 . . 95 11 6 . . 123 81 . . 52 120 . . 74 Projectiles 36 | . . . . . . 27 9 . . . . . . . . . . . . . . . . . . Explosions 189 | . . 13 . . . 16 16 . 12 . . . . 6 . . . . . . 19 74 . . 33 Melee 430 | . . . . . . . . . . . . 95 11 . . . 123 81 . . 33 46 . . 41 Knockbacks 4 | . . . . . . . . . . . . . . . . . . . . . . . . . 4 Impact . | . . . . . . . . . . . . . . . . . . . . . . . . . . Kinetic 4 | . . . . . . . . . . . . . . . . . . . . . . . . . 4 Secondary . | . . . . . . . . . . . . . . . . . . . . . . . . . . Self-Inflicted Damage 193 | . . . . . . . 47 . 6 . . . . . . . . 7 5 . 93 3 . . 32 Shots 6 | . . . . . . . 1 . 1 . . . . . . . . . 1 . 1 1 . . 1 Rammed 5 | . . . . . . . . . . . . . . . . . . 1 . . . . . . 4 Targets Rammed 5 | . . . . . . . . . . . . . . . . . . 1 . . . . . . 4 Kicked . | . . . . . . . . . . . . . . . . . . . . . . . . . . Crushed . | . . . . . . . . . . . . . . . . . . . . . . . . . . Highest Temperature 308 | . 20 22 . 84 3 130 227 166 2 . . 5 . . . . 6 87 202 2 118 308 128 . 100 Average Temperature 48 | . 5 10 . 33 2 39 71 85 2 . . 4 . . . . 4 32 55 1 28 74 60 . 21 Received Heat Transfer 1809 | . 207 . . . 225 234 279 . 9 . 39 84 . . . 144 9 18 . . 90 408 9 . 54 Effects 3 | . . . . . . . 1 . . . . . . . . . . . . . . 2 . . . Energy Bleed 2 | . . . . . . . 1 . . . . . . . . . . . . . . 1 . . . Short Circuit 1 | . . . . . . . . . . . . . . . . . . . . . . 1 . . . Siege Activations . | . . . . . . . . . . . . . . . . . . . . . . . . . . Robots Corrupted 1 | . . . . . . . . . . . . . . . . . . . . . . 1 . . . Combat Hostiles 1 | . . . . . . . . . . . . . . . . . . . . . . 1 . . . Parts Fried 8 | . . . . . . 1 3 . 1 . . . . . . . . . . . 2 1 . . . Impact Corruptions . | . . . . . . . . . . . . . . . . . . . . . . . . . . Robots Melted . | . . . . . . . . . . . . . . . . . . . . . . . . . . Combat Hostiles . | . . . . . . . . . . . . . . . . . . . . . . . . . . Parts Melted 1 | . . . . . . 1 . . . . . . . . . . . . . . . . . . . Heat Transferred 759 | . 250 . . . . . . 37 . . . . . 200 . . . . . . . 161 . . 111 Parts Sabotaged . | . . . . . . . . . . . . . . . . . . . . . . . . . . Parts Stolen 8 | . . . . . . . . . . . . . 4 1 . 3 . . . . . . . . . Parts Stripped . | . . . . . . . . . . . . . . . . . . . . . . . . . . Power Chain Reactions 4 | . . . . . . . . . . . . . . 3 . . . . . . . 1 . . . Missiles Intercepted . | . . . . . . . . . . . . . . . . . . . . . . . . . . Alert | -11 -10 -10 -10 -9 -8 -8 -7 -7 -7 -7 -6 -6 -6 -6 -6 -5 -5 -5 -5 -5 -5 -4 -4 -4 -3 ------- Run | Scr Mat Min Exi Min Mat Sto Fac Low Low Dat Pro Fac Low Low Zio Pro Fac Ext Cet Arc Hub Fac Upp Upp Res Peak Influence 1247 | 5 448 445 . 36 149 1247 851 . . . . 96 . . . . 322 451 452 281 470 749 . . 281 Average Influence 227 | . 253 288 . 4 71 726 577 . . . . 54 . . . . 149 183 429 235 170 435 . . 187 Maximum Alert Level 4 | . 2 2 . . . 4 3 . . . . . . . . . 1 2 2 1 2 3 . . 1 Low Security (%) 52 | . . . . . . . . . . . . . . . . . . . . . . . . . . Level 1 26 | . . . . . . . . . . . . . . . . . . . . . . . . . . Level 2 14 | . . . . . . . . . . . . . . . . . . . . . . . . . . Level 3 5 | . . . . . . . . . . . . . . . . . . . . . . . . . . Level 4 1 | . . . . . . . . . . . . . . . . . . . . . . . . . . Level 5 . | . . . . . . . . . . . . . . . . . . . . . . . . . . High Security . | . . . . . . . . . . . . . . . . . . . . . . . . . . Max Security . | . . . . . . . . . . . . . . . . . . . . . . . . . . Squads Dispatched 42 | . 2 . . 1 1 7 7 . . . . 2 . . . . 8 . . . 2 11 . . 1 Investigation 19 | . 2 . . 1 1 2 4 . . . . 2 . . . . 2 . . . . 5 . . . Extermination 5 | . . . . . . . . . . . . . . . . . 2 . . . 1 2 . . . Reinforcement 5 | . . . . . . 1 2 . . . . . . . . . 1 . . . 1 . . . . Assault 4 | . . . . . . 1 1 . . . . . . . . . . . . . . 1 . . 1 Garrison 9 | . . . . . . 3 . . . . . . . . . . 3 . . . . 3 . . . Intercept . | . . . . . . . . . . . . . . . . . . . . . . . . . . Construction Impeded 1 | . . . . . . . 1 . . . . . . . . . . . . . . . . . . Haulers Reinforced 1 | . . . . . . . . . . . . . . . . . 1 . . . . . . . . Stealth | -11 -10 -10 -10 -9 -8 -8 -7 -7 -7 -7 -6 -6 -6 -6 -6 -5 -5 -5 -5 -5 -5 -4 -4 -4 -3 --------- Run | Scr Mat Min Exi Min Mat Sto Fac Low Low Dat Pro Fac Low Low Zio Pro Fac Ext Cet Arc Hub Fac Upp Upp Res Distress Signals 17 | . 4 . . . 1 2 2 . . . . . . . . . 2 1 . . 1 3 . . 1 Communications Jammed 2 | . . . . . . . . . . . . . . . . . . 1 . . . 1 . . . Distress Signals 2 | . . . . . . . . . . . . . . . . . . 1 . . . 1 . . . Times Spotted 345 | 5 34 14 . 1 15 27 31 4 11 . 3 16 5 6 . 10 19 16 5 6 31 66 8 2 10 Peak Tracking Total 19 | 2 7 3 . 2 11 6 6 3 9 . 3 6 2 4 . 5 4 5 5 8 19 13 9 4 4 Tactical Retreats 53 | 2 7 2 . . . . 2 2 5 . 1 3 . . . . 3 . . . 4 21 1 . . Traps | -11 -10 -10 -10 -9 -8 -8 -7 -7 -7 -7 -6 -6 -6 -6 -6 -5 -5 -5 -5 -5 -5 -4 -4 -4 -3 ------- Run | Scr Mat Min Exi Min Mat Sto Fac Low Low Dat Pro Fac Low Low Zio Pro Fac Ext Cet Arc Hub Fac Upp Upp Res Traps Triggered 15 | . 3 . . . . 1 1 . . . . . . . . . . 4 . . 2 3 . . 1 Indirectly . | . . . . . . . . . . . . . . . . . . . . . . . . . . Trap Hack Attempts . | . . . . . . . . . . . . . . . . . . . . . . . . . . Triggered . | . . . . . . . . . . . . . . . . . . . . . . . . . . Disarmed . | . . . . . . . . . . . . . . . . . . . . . . . . . . Reprogrammed . | . . . . . . . . . . . . . . . . . . . . . . . . . . Reused . | . . . . . . . . . . . . . . . . . . . . . . . . . . Traps Extracted . | . . . . . . . . . . . . . . . . . . . . . . . . . . Installed . | . . . . . . . . . . . . . . . . . . . . . . . . . . Triggered . | . . . . . . . . . . . . . . . . . . . . . . . . . . Machines | -11 -10 -10 -10 -9 -8 -8 -7 -7 -7 -7 -6 -6 -6 -6 -6 -5 -5 -5 -5 -5 -5 -4 -4 -4 -3 ---------- Run | Scr Mat Min Exi Min Mat Sto Fac Low Low Dat Pro Fac Low Low Zio Pro Fac Ext Cet Arc Hub Fac Upp Upp Res Machines Disabled 23 | . . 1 . . . 5 1 . . . . 1 1 . . . 1 2 1 1 5 4 . . . Max in Single Turn 4 | . . 1 . . . 1 1 . . . . 1 1 . . . . . 1 . 4 2 . . . Garrison Access 4 | . . . . . . . . . . . . . . . . . . . . . . 3 . . 1 Network Hub 1 | . . . . . . . . . . . . . . . . . . . . . 1 . . . . Energy Cycler 2 | . . . . . . . . . . . . . . . . . . 2 . . . . . . . Machines Sabotaged . | . . . . . . . . . . . . . . . . . . . . . . . . . . Garrisons Compromised . | . . . . . . . . . . . . . . . . . . . . . . . . . . Overloaded Fab Kills . | . . . . . . . . . . . . . . . . . . . . . . . . . . Fab Network Shutdowns . | . . . . . . . . . . . . . . . . . . . . . . . . . . Hacking | -11 -10 -10 -10 -9 -8 -8 -7 -7 -7 -7 -6 -6 -6 -6 -6 -5 -5 -5 -5 -5 -5 -4 -4 -4 -3 --------- Run | Scr Mat Min Exi Min Mat Sto Fac Low Low Dat Pro Fac Low Low Zio Pro Fac Ext Cet Arc Hub Fac Upp Upp Res Machines Accessed 61 | . 6 . 2 1 4 7 7 1 . 4 . 7 1 . . . 6 1 . . 1 11 . . 2 Terminals 16 | . 4 . . 1 2 3 4 . . . . 2 . . . . . . . . . . . . . Fabricators 6 | . . . . . . . 1 . . . . 1 . . . . 2 . . . . 2 . . . Repair Stations 7 | . . . . . . 1 . . . . . 2 . . . . 1 1 . . . 2 . . . Recycling Units 12 | . 2 . . . 2 2 1 . . . . 2 . . . . 1 . . . . 2 . . . Scanalyzers 4 | . . . . . . . 1 . . . . . . . . . 1 . . . . 1 . . 1 Garrison Access 8 | . . . . . . 1 . . . . . . . . . . 1 . . . 1 4 . . 1 Total Hacks 192 | . 17 . 2 3 11 25 24 1 . 24 . 17 1 . . . 20 2 . . 2 37 . . 6 Successful 108 | . 7 . 2 1 6 16 10 1 . 24 . 7 1 . . . 15 1 . . 1 14 . . 2 Failed 83 | . 9 . . 2 5 9 14 . . . . 10 . . . . 5 1 . . 1 23 . . 4 Catastrophic 16 | . . . . . 1 1 4 . . . . 4 . . . . . . . . . 6 . . . Database Lockouts 1 | . 1 . . . . . . . . . . . . . . . . . . . . . . . . Manual 151 | . 12 . 1 3 3 15 14 . . . . 3 . . . . 17 24 10 . 13 32 . . 4 Terminals 52 | . 12 . . 3 5 14 11 . . . . 7 . . . . . . . . . . . . . Fabricators 26 | . . . . . . . 5 . . . . 2 . . . . 11 . . . . 8 . . . Repair Stations 22 | . . . . . . 3 . . . . . 6 . . . . 3 2 . . . 8 . . . Recycling Units 29 | . 5 . . . 6 5 3 . . . . 2 . . . . 1 . . . . 7 . . . Scanalyzers 14 | . . . . . . . 5 . . . . . . . . . 2 . . . . 6 . . 1 Garrison Access 21 | . . . . . . 3 . . . . . . . . . . 3 . . . 2 8 . . 5 Terminal Hacks 44 | . 3 . 2 1 3 6 2 1 . 24 . 1 1 . . . . . . . . . . . . Record 12 | . . . 1 . . . . . . 11 . . . . . . . . . . . . . . . Part Schematic 5 | . 1 . . . . . . . . 4 . . . . . . . . . . . . . . . Robot Schematic 6 | . . . . . . . . . . 6 . . . . . . . . . . . . . . . Robot Analysis 1 | . . . . 1 . . . . . . . . . . . . . . . . . . . . . Prototype ID Bank 5 | . 2 . . . . . . . . 3 . . . . . . . . . . . . . . . Open Door 4 | . . . . . . 2 . 1 . . . . 1 . . . . . . . . . . . . Branch Access Points 2 | . . . . . 1 . 1 . . . . . . . . . . . . . . . . . . Unreport Threat 4 | . . . . . . 3 . . . . . 1 . . . . . . . . . . . . . Locate Traps 1 | . . . . . 1 . . . . . . . . . . . . . . . . . . . . Hauler Manifests 3 | . . . . . 1 1 1 . . . . . . . . . . . . . . . . . . EX-Prototype ID Bank 1 | . . . 1 . . . . . . . . . . . . . . . . . . . . . . Fabricator Hacks 12 | . . . . . . . 1 . . . . 1 . . . . 7 . . . . 3 . . . Load Schematic 7 | . . . . . . . 1 . . . . 1 . . . . 3 . . . . 2 . . . Build 5 | . . . . . . . . . . . . . . . . . 4 . . . . 1 . . . Repair Station Hacks 7 | . . . . . . 2 . . . . . 3 . . . . 1 1 . . . . . . . Scan Component 5 | . . . . . . 1 . . . . . 2 . . . . 1 1 . . . . . . . Repair 2 | . . . . . . 1 . . . . . 1 . . . . . . . . . . . . . Recycling Unit Hacks 10 | . 2 . . . 2 2 1 . . . . 1 . . . . 1 . . . . 1 . . . Retrieve Components 10 | . 2 . . . 2 2 1 . . . . 1 . . . . 1 . . . . 1 . . . Scanalyzer 10 | . . . . . . . 4 . . . . . . . . . 2 . . . . 4 . . . Insert Component 5 | . . . . . . . 2 . . . . . . . . . 1 . . . . 2 . . . Analyze 5 | . . . . . . . 2 . . . . . . . . . 1 . . . . 2 . . . Garrison Access Hacks 3 | . . . . . . . . . . . . . . . . . . . . . . 2 . . 1 Unlock Access 1 | . . . . . . . . . . . . . . . . . . . . . . . . . 1 Seal Access 2 | . . . . . . . . . . . . . . . . . . . . . . 2 . . . Unauthorized Hacks 68 | . 9 . . . 3 13 14 . . . . 2 . . . . 9 . . . 3 10 . . 5 Terminals 4 | . 1 . . . . 1 1 . . . . 1 . . . . . . . . . . . . . Assimilate 1 | . . . . . . . . . . . . 1 . . . . . . . . . . . . . Botnet 3 | . 1 . . . . 1 1 . . . . . . . . . . . . . . . . . . Fabricators 5 | . . . . . . . 1 . . . . . . . . . 2 . . . . 2 . . . Prioritize 3 | . . . . . . . 1 . . . . . . . . . 1 . . . . 1 . . . Siphon 2 | . . . . . . . . . . . . . . . . . 1 . . . . 1 . . . Repair Stations . | . . . . . . . . . . . . . . . . . . . . . . . . . . Recycling Units 5 | . 1 . . . 1 2 . . . . . . . . . . . . . . . 1 . . . Reject 1 | . . . . . . . . . . . . . . . . . . . . . . 1 . . . Tunnel 4 | . 1 . . . 1 2 . . . . . . . . . . . . . . . . . . . Scanalyzers . | . . . . . . . . . . . . . . . . . . . . . . . . . . Garrison Access 8 | . . . . . . 3 . . . . . . . . . . 2 . . . 1 1 . . 1 Reprogram 7 | . . . . . . 3 . . . . . . . . . . 2 . . . 1 . . . 1 Jam 1 | . . . . . . . . . . . . . . . . . . . . . . 1 . . . Data Cores Recovered 1 | . . . . . . . . . . . . . . . . . . . . . 1 . . . . Used . | . . . . . . . . . . . . . . . . . . . . . . . . . . Hacking Detections 44 | . 6 . . 1 4 5 7 . . . . 5 . . . . 5 1 . . 1 7 . . 2 Full Trace Events 13 | . . . . 1 . . 4 . . . . 2 . . . . 2 . . . . 4 . . . Feedback Events . | . . . . . . . . . . . . . . . . . . . . . . . . . . Feedback Blocked . | . . . . . . . . . . . . . . . . . . . . . . . . . . Robot Schematics Acquired 11 | . . . . . . . . . . 6 . . . . . . . 5 . . . . . . . Robots Built 4 | . . . . . . . . . . . . . . . . . 4 . . . . . . . . Matter 476 | . . . . . . . . . . . . . . . . . 476 . . . . . . . . Time 168 | . . . . . . . . . . . . . . . . . 168 . . . . . . . . Total Robot Build Rating 24 | . . . . . . . . . . . . . . . . . 24 . . . . . . . . Part Schematics Acquired 47 | . 1 . . . . . 2 . . 4 . . . . . . 10 16 12 . . 2 . . . Parts Built 4 | . . . . . . . . . . . . . . . . . 4 . . . . . . . . Matter 497 | . . . . . . . . . . . . . . . . . 284 . . . . 213 . . . Time 170 | . . . . . . . . . . . . . . . . . 94 . . . . 76 . . . Total Part Build Rating 20 | . . . . . . . . . . . . . . . . . 20 . . . . . . . . Parts Repaired 1 | . . . . . . . . . . . . 1 . . . . . . . . . . . . . Time 82 | . . . . . . 38 . . . . . 44 . . . . . . . . . . . . . Parts Recycled . | . . . . . . . . . . . . . . . . . . . . . . . . . . Recycled Matter . | . . . . . . . . . . . . . . . . . . . . . . . . . . Retrieved Matter . | . . . . . . . . . . . . . . . . . . . . . . . . . . Retrieved Components 42 | . 10 . . . 4 11 10 . . . . 6 . . . . 1 . . . . . . . . Parts Scanalyzed 5 | . . . . . . . 2 . . . . . . . . . 1 . . . . 2 . . . Part Schematics Acquired 5 | . . . . . . . 2 . . . . . . . . . 1 . . . . 2 . . . Parts Damaged . | . . . . . . . . . . . . . . . . . . . . . . . . . . Bothacking | -11 -10 -10 -10 -9 -8 -8 -7 -7 -7 -7 -6 -6 -6 -6 -6 -5 -5 -5 -5 -5 -5 -4 -4 -4 -3 ------------ Run | Scr Mat Min Exi Min Mat Sto Fac Low Low Dat Pro Fac Low Low Zio Pro Fac Ext Cet Arc Hub Fac Upp Upp Res Used RIF Installer . | . . . . . . . . . . . . . . . . . . . . . . . . . . Robots Hacked . | . . . . . . . . . . . . . . . . . . . . . . . . . . Non-combat . | . . . . . . . . . . . . . . . . . . . . . . . . . . Combat . | . . . . . . . . . . . . . . . . . . . . . . . . . . Robot Hacks Applied . | . . . . . . . . . . . . . . . . . . . . . . . . . . Relay Couplers Released 7 | . . . . . . . . . . . . . . . . . 4 . . . . . . . 3 Machine Destruction 3 | . . . . . . . . . . . . . . . . . . . . . . . . . 3 Programmers 4 | . . . . . . . . . . . . . . . . . 4 . . . . . . . . Robots Rewired 11 | . . . . . . . . . . . . 1 3 . . . . 7 . . . . . . . Allies Hacked 4 | . . . . . . . . . . . . . . . . . 1 1 . . . 2 . . . Hacks Repelled 2 | . . . . . . . . . . . . . . . . . 1 1 . . . . . . . Allies | -11 -10 -10 -10 -9 -8 -8 -7 -7 -7 -7 -6 -6 -6 -6 -6 -5 -5 -5 -5 -5 -5 -4 -4 -4 -3 -------- Run | Scr Mat Min Exi Min Mat Sto Fac Low Low Dat Pro Fac Low Low Zio Pro Fac Ext Cet Arc Hub Fac Upp Upp Res Total Allies 61 | . . 3 . . . 6 . . . . 1 2 3 . 4 . 11 13 8 3 2 5 . . . Largest Group 19 | . . 3 3 3 2 6 . . . . 1 1 3 3 4 4 5 14 16 19 2 2 . . . Highest-Rated Group 1438 | . . 40 40 40 24 114 . . . . 94 29 90 84 145 145 312 603 1081 1438 170 206 . . . Highest-Rated Ally 156 | . . 16 16 16 16 34 . . . . 94 29 31 28 37 37 70 156 156 156 85 103 . . . Zionite Dispatches 9 | . . . . . . . . . . . . . . . . . 1 1 1 . 2 4 . . . Heavy 2 | . . . . . . . . . . . . . . . . . . . . . 1 1 . . . Light 2 | . . . . . . . . . . . . . . . . . 1 . 1 . . . . . . Recon 1 | . . . . . . . . . . . . . . . . . . . . . 1 . . . . Demo 1 | . . . . . . . . . . . . . . . . . . . . . . 1 . . . Kinetic Resupply 1 | . . . . . . . . . . . . . . . . . . . . . . 1 . . . Heavy Resupply 1 | . . . . . . . . . . . . . . . . . . . . . . 1 . . . Infowar Resupply 1 | . . . . . . . . . . . . . . . . . . 1 . . . . . . . Total Orders 12 | . . . . 1 . . . 2 2 . 1 . . 2 . . . 1 . . 2 1 . . . DROP 2 | . . . . . . . . . . . . . . . . . . 1 . . . 1 . . . EXPLORE 8 | . . . . 1 . . . 1 1 . 1 . . 2 . . . . . . 2 . . . . RETURN 2 | . . . . . . . . 1 1 . . . . . . . . . . . . . . . . Ally Attacks 399 | . . . . 17 19 73 . . . . 12 2 60 2 . 15 69 89 13 14 9 5 . . . Total Damage 10172 | . . . . 213 230 1853 . . . . 280 20 903 53 . 437 2286 2086 479 337 575 420 . . . Kills 83 | . . . . 2 2 19 . . . . 5 . 3 . . 3 16 17 5 3 4 4 . . . Allies Corrupted 3 | . . . . . . . . . . . . . . . . . 1 1 . . . 1 . . . Allies Melted . | . . . . . . . . . . . . . . . . . . . . . . . . . . Intel | -11 -10 -10 -10 -9 -8 -8 -7 -7 -7 -7 -6 -6 -6 -6 -6 -5 -5 -5 -5 -5 -5 -4 -4 -4 -3 ------- Run | Scr Mat Min Exi Min Mat Sto Fac Low Low Dat Pro Fac Low Low Zio Pro Fac Ext Cet Arc Hub Fac Upp Upp Res Robot Analysis Total 1 | . . . . 1 . . . . . . . . . . . . . . . . . . . . . Derelict Logs Recovered 10 | . . 2 . 1 . . . 1 1 . . . 1 1 1 . . . . . . . 1 1 . Drone Launches 10 | . . . 1 . . . . 3 2 . 2 . 2 . . . . . . . . . . . . Drone Recoveries 1 | . . . . . . . . 1 . . . . . . . . . . . . . . . . . Zionite Intel Received 16 | . . . . . . . . . . . . . . . . . 2 6 2 . 1 5 . . . Emergency Access 1 | . . . . . . . . . . . . . . . . . . . . . . 1 . . . Guard Positions 1 | . . . . . . . . . . . . . . . . . . 1 . . . . . . . Component Stockpiles 2 | . . . . . . . . . . . . . . . . . . 1 . . . 1 . . . Prototype Stockpiles 1 | . . . . . . . . . . . . . . . . . . . 1 . . . . . . Component Schematics 1 | . . . . . . . . . . . . . . . . . . 1 . . . . . . . Prototype Schematics 2 | . . . . . . . . . . . . . . . . . 1 . 1 . . . . . . Unaware Schematics 1 | . . . . . . . . . . . . . . . . . . 1 . . . . . . . Unaware Analyses 4 | . . . . . . . . . . . . . . . . . 1 1 . . . 2 . . . Active Garrisons 2 | . . . . . . . . . . . . . . . . . . . . . 1 1 . . . Depthwide Sectors/0 1 | . . . . . . . . . . . . . . . . . . 1 . . . . . . . Exploration | -11 -10 -10 -10 -9 -8 -8 -7 -7 -7 -7 -6 -6 -6 -6 -6 -5 -5 -5 -5 -5 -5 -4 -4 -4 -3 ------------- Run | Scr Mat Min Exi Min Mat Sto Fac Low Low Dat Pro Fac Low Low Zio Pro Fac Ext Cet Arc Hub Fac Upp Upp Res Turns Passed 13718 | 2963 785 835 315 261 293 720 789 318 194 54 213 586 378 198 618 372 892 758 216 57 256 1215 130 24 278 Spaces Moved 10631 | 659 512 611 311 232 231 408 667 365 238 83 260 554 392 210 785 208 646 797 203 46 327 1427 207 37 215 Core 131 | 1 . . . . . . . . . . . . . . . . . . . . . 118 . . 12 Treads 1015 | 654 45 . . . . . . . . . . . . . . 125 191 . . . . . . . . Legs 1662 | . . . 125 232 231 408 666 . . . . . . . . . . . . . . . . . . Wheels 1268 | 4 467 611 186 . . . . . . . . . . . . . . . . . . . . . . Hover 6203 | . . . . . . . 1 365 238 83 260 554 392 210 785 83 455 797 203 46 327 1058 207 37 102 Flight 352 | . . . . . . . . . . . . . . . . . . . . . . 251 . . 101 Fastest Speed 34 | 50 80 100 90 90 45 90 45 65 65 65 65 55 55 58 58 58 48 54 58 64 62 34 58 60 37 Average Speed 79 | 159 98 100 93 90 79 127 93 65 65 65 65 55 61 59 58 142 87 54 60 64 63 56 60 60 54 Slowest Speed 260 | 160 160 100 120 90 90 130 130 65 65 65 65 55 131 65 58 260 170 58 64 64 64 150 62 60 150 Overloaded Moves 143 | . . . . . 56 . 87 . . . . . . . . . . . . . . . . . . Propulsion Burnouts . | . . . . . . . . . . . . . . . . . . . . . . . . . . Robots Hopped 3 | . . . . . . . . 1 . . . . . . . . . . . . . . . . 2 Cave-ins Triggered . | . . . . . . . . . . . . . . . . . . . . . . . . . . Exploration Rate (%) 56 | 58 89 97 71 98 23 57 22 57 81 73 62 19 47 50 90 50 15 74 80 87 49 48 46 5 9 Regions Visited 25 Branch Regions 18 Pre-discovered Areas 19 | . 1 3 1 . 1 2 . . . 1 . . . . 1 . . 9 . . . . . . . Known Exits Taken 13 | . . . . . 1 1 1 . . . . 1 . . . 1 1 1 1 1 1 1 1 1 . Unknown Exits Taken 12 | 1 1 1 1 1 . . . 1 1 1 1 . 1 1 1 . . . . . . . . . . Scrap Searched 21 | . . 1 . 2 . . . 2 2 . 1 . 1 6 3 . . . . . . . 2 1 . Spaces Dug 120 | . . . . 3 6 . . 4 8 . 11 26 9 6 . 7 11 . . . 9 20 . . . Terrain Destroyed 530 | . . 27 . 3 6 11 88 4 8 . 11 26 9 15 . 7 11 . . . 180 49 . . 75 Melee 111 | . . . . . . . . 4 8 . 11 26 9 6 . 7 11 . . . 9 20 . . . Projectile 9 | . . . . 3 6 . . . . . . . . . . . . . . . . . . . . AOE 410 | . . 27 . . . 11 88 . . . . . . 9 . . . . . . 171 29 . . 75 Actions | -11 -10 -10 -10 -9 -8 -8 -7 -7 -7 -7 -6 -6 -6 -6 -6 -5 -5 -5 -5 -5 -5 -4 -4 -4 -3 --------- Run | Scr Mat Min Exi Min Mat Sto Fac Low Low Dat Pro Fac Low Low Zio Pro Fac Ext Cet Arc Hub Fac Upp Upp Res Total 15041 | 2552 667 798 335 269 308 559 774 423 262 82 284 735 492 253 948 255 930 1095 287 73 357 1720 209 37 337 Wait 3207 | 1871 48 163 12 27 48 66 18 29 1 . 7 71 35 21 151 5 173 180 71 28 9 100 . . 73 Move 10600 | 658 511 610 310 231 230 407 666 362 237 82 259 553 391 209 784 207 645 796 202 45 325 1426 206 36 212 Hop 2 | . . . . . . . . 1 . . . . . . . . . . . . . . . . 1 Pick Up 107 | 4 8 . 2 2 4 17 10 5 2 . 2 10 6 1 5 1 9 2 2 . 1 11 . . 3 Fast Attach 112 | 9 12 . 2 . 3 8 4 . 1 . . 6 1 2 1 7 16 5 . . 2 27 1 1 4 Attach 60 | . 3 . . . 5 6 7 . 2 . . 3 2 . . 2 7 . . . . 17 . . 6 Detach 37 | 2 2 . 2 . 1 4 2 . . . . 5 . . . 2 7 1 . . . 8 . . 1 Swap 98 | . 6 2 2 2 2 3 8 10 5 . 3 6 5 6 2 3 10 3 4 . 2 13 1 . . Drop 127 | . 11 . 4 1 1 15 10 5 4 . 1 12 1 1 5 2 13 7 2 . 4 27 1 . . Fire 255 | 8 66 23 . 6 14 30 46 5 2 . . . 3 1 . . . 5 5 . 2 14 . . 25 Melee 288 | . . . . . . 3 3 6 8 . 12 54 15 12 . 26 50 12 1 . 11 67 . . 8 Ram 5 | . . . . . . . . . . . . . . . . . . 1 . . . . . . 4 Kick . | . . . . . . . . . . . . . . . . . . . . . . . . . . Crush . | . . . . . . . . . . . . . . . . . . . . . . . . . . Escape Stasis 11 | . . . . . . . . . . . . . . . . . . . . . 1 10 . . . Rewire 131 | . . . . . . . . . . . . 15 33 . . . . 83 . . . . . . . Trap . | . . . . . . . . . . . . . . . . . . . . . . . . . . Miscellaneous 1 | . . . 1 . . . . . . . . . . . . . . . . . . . . . . Route ------- -11/Scrapyard -10/Materials (discovered 3 exits: [*Mat x2] / [*Min]) -10/Mines (discovered 3 exits: [*Mat x2] / *Exi) -10/Exiles -9/Mines (discovered 2 exits: *Mat x2) -8/Materials (discovered 2 exits: *Fac / *Sto) -8/Storage -7/Factory (discovered 2 exits: *Low x2) -7/Lower Caves -7/Lower Caves (discovered 2 exits: *Fac / *Dat) -7/Data Miner -6/Proximity Caves -6/Factory (discovered 2 exits: Fac / *Low) -6/Lower Caves -6/Lower Caves (discovered 2 exits: *Fac / [*Zio]) -6/Zion -5/Proximity Caves -5/Factory (discovered 2 exits: Fac / *Ext) -5/Extension (discovered 3 exits: *Fac x2 / *Cet) -5/Cetus -5/Archives (discovered 3 exits: *Fac / *Hub x2) -5/Hub_04(d) -4/Factory (discovered 4 exits: *Res x3 / *Upp) -4/Upper Caves -4/Upper Caves -3/Research History --------- Turn | Location | Event 11 | -11/Scrapyard | Discovered new exit (range 14) 2402 | -11/Scrapyard | Assembled infested the area 2964 | -11/Scrapyard | Entered Materials 2965 | -10/Materials | Build established: Mutant 3301 | -10/Materials | Core integrity fell below 50% 3333 | -10/Materials | Discovered new exit (range 15) 3489 | -10/Materials | Central database locked down 3614 | -10/Materials | Discovered new exit (range 11) 3703 | -10/Materials | Discovered new exit (range 16) 3749 | -10/Materials | Entered Mines 3750 | -10/Mines | Met a Derelict bent on vengeance 3886 | -10/Mines | Found a hidden stash of uninstalled traps 4107 | -10/Mines | Learned location of Mines (-9) 4116 | -10/Mines | Learned location of Storage (-8) 4159 | -10/Mines | Discovered new exit (range 5) 4207 | -10/Mines | Assisted by bots powering up and referring to "LRC-V3" 4222 | -10/Mines | Discovered new exit (range 5) 4305 | -10/Mines | Deemed a non-threat by the Exiles lab entrance 4306 | -10/Mines | Discovered new exit (range 5) 4584 | -10/Mines | Entered Exiles 4584 | -10/Exiles | Accompanied by 3 allies 4609 | -10/Exiles | Met 8R-AWN 4624 | -10/Exiles | Met EX-HEX 4678 | -10/Exiles | Met EX-DEC 4698 | -10/Exiles | Learned location of Zion (-6) 4718 | -10/Exiles | Met EX-BIN 4732 | -10/Exiles | Aligned with FarCom system 4733 | -10/Exiles | Given EX-Vault access code 4758 | -10/Exiles | Opened EX-Vault 4767 | -10/Exiles | Found Potential Leg 4770 | -10/Exiles | Found Potential Leg 4782 | -10/Exiles | Found Cloak of Protection 4804 | -10/Exiles | Warned to stay clear of 0b10 Research branches 4875 | -10/Exiles | Discovered new exit (range 14) 4899 | -10/Exiles | Stole two prototypes: Potential Leg, Cloak of Protection 4899 | -10/Exiles | Entered Mines 4899 | -9/Mines | Accompanied by 4 allies 4905 | -9/Mines | Discovered new exit (range 57) 4908 | -9/Mines | Discovered new exit (range 53) 5160 | -9/Mines | Entered Materials 5160 | -8/Materials | Accompanied by 2 allies 5160 | -8/Materials | Evolved 4 slots: Utility x4 5161 | -8/Materials | Identified exit to Storage 5434 | -8/Materials | Discovered new exit (range 16) 5443 | -8/Materials | Identified exit to Factory 5453 | -8/Materials | Entered Storage 5483 | -8/Storage | Lost 6 parts (1p3u2w) 5549 | -8/Storage | Garrison activated, responded to threat 5853 | -8/Storage | First assault squad dispatched 6024 | -8/Storage | Discovered exit to Factory (range 12) 6173 | -8/Storage | Entered Factory 6173 | -7/Factory | Evolved 2 slots: Propulsion x1, Utility x1 6175 | -7/Factory | FarCom data flow suspended 6568 | -7/Factory | Identified exit to Lower Caves 6573 | -7/Factory | First assault squad dispatched 6962 | -7/Factory | Entered Lower Caves 7024 | -7/Lower Caves | Learned Factory stockpile data 7036 | -7/Lower Caves | Spotted B-75 Beast 7162 | -7/Lower Caves | Found Prototype Device 7225 | -7/Lower Caves | Discovered new exit (range 10) 7280 | -7/Lower Caves | Entered another Lower Caves area 7306 | -7/Lower Caves | Discovered new exit (range 10) 7386 | -7/Lower Caves | Learned 8 Factory zone layouts 7394 | -7/Lower Caves | Encountered a Warlord checkpoint 7451 | -7/Lower Caves | Build established: Scavenger-Scout 7462 | -7/Lower Caves | Discovered new exit (range 13) 7474 | -7/Lower Caves | Entered Data Miner 7474 | -7/Data Miner | Discovered new exit (range 6) 7484 | -7/Data Miner | Met Data Miner 7501 | -7/Data Miner | Learned location of Section 7 (-2) 7501 | -7/Data Miner | Acquired the access code to Warlord's prototype stash 7511 | -7/Data Miner | Received God Mode back door access code from Data Miner 7528 | -7/Data Miner | Entered Proximity Caves 7577 | -6/Proximity Caves | Escorted by Enhanced Grunt 7719 | -6/Proximity Caves | Discovered new exit (range 17) 7741 | -6/Proximity Caves | Entered Factory 7741 | -6/Factory | Evolved 2 slots: Power x1, Propulsion x1 7742 | -6/Factory | Identified exit to Factory 7742 | -6/Factory | Identified exit to Lower Caves 7874 | -6/Factory | Repaired Lrn. Terrain Scanner? 8327 | -6/Factory | Entered Lower Caves 8407 | -6/Lower Caves | Learned Factory trap positions 8483 | -6/Lower Caves | Spotted EN-L60(f) 8484 | -6/Lower Caves | Encountered a Master Thief 8486 | -6/Lower Caves | Spotted YO-8GC(f) 8487 | -6/Lower Caves | Encountered a Master Thief 8488 | -6/Lower Caves | Prototype Device stolen by Master Thief 8492 | -6/Lower Caves | Cmb. Airjet stolen by Master Thief 8550 | -6/Lower Caves | Spotted AZ-37G(f) 8551 | -6/Lower Caves | Encountered a Master Thief 8567 | -6/Lower Caves | Variable Charge Gun stolen by Master Thief 8567 | -6/Lower Caves | Allies destroyed AZ-37G(f) 8629 | -6/Lower Caves | Discovered new exit (range 12) 8705 | -6/Lower Caves | Entered another Lower Caves area 8705 | -6/Lower Caves | Accompanied by 5 allies 8719 | -6/Lower Caves | Discovered exit to Factory (range 34) 8799 | -6/Lower Caves | Spotted JH-M01(f) 8800 | -6/Lower Caves | Encountered a Master Thief 8811 | -6/Lower Caves | Lgt. Nuclear Core stolen by Master Thief 8883 | -6/Lower Caves | Discovered new exit (range 11) 8903 | -6/Lower Caves | Entered Zion 8920 | -6/Zion | Acquired unknown access codes intercepted by a Zionite 8931 | -6/Zion | Discovered new exit (range 18) 9007 | -6/Zion | Learned location of Warlord (-4) 9048 | -6/Zion | Found Prototype Device 9128 | -6/Zion | Learned 4 Factory zone layouts 9259 | -6/Zion | Imprinted 9261 | -6/Zion | Declared Zion's savior 9521 | -6/Zion | Entered Proximity Caves 9521 | -5/Proximity Caves | Accompanied by 4 allies 9681 | -5/Proximity Caves | Lost 4 parts (1p1n2u) 9727 | -5/Proximity Caves | Spotted 2E-HU8(f) 9728 | -5/Proximity Caves | Encountered a Master Thief 9732 | -5/Proximity Caves | Destroyed 2E-HU8(f) 9733 | -5/Proximity Caves | Spotted HM-52U(f) 9733 | -5/Proximity Caves | Prototype Device stolen by Master Thief 9734 | -5/Proximity Caves | Encountered a Master Thief 9790 | -5/Proximity Caves | Spotted 2Z-YPE(f) 9791 | -5/Proximity Caves | Encountered a Master Thief 9797 | -5/Proximity Caves | Spotted 5V-V5Q(f) 9798 | -5/Proximity Caves | Encountered a Master Thief 9798 | -5/Proximity Caves | Master Tearclaws stolen by Master Thief 9799 | -5/Proximity Caves | Variable Charge Gun stolen by Master Thief 9870 | -5/Proximity Caves | Discovered exit to Factory (range 15) 9893 | -5/Proximity Caves | Entered Factory 9893 | -5/Factory | Evolved 2 slots: Propulsion x1, Utility x1 9894 | -5/Factory | Identified exit to Extension 9895 | -5/Factory | Identified exit to Factory 9896 | -5/Factory | Loaded intel: 128 trap records 10017 | -5/Factory | Build established: Messiah-Assassin 10196 | -5/Factory | Garrison activated, responded to threat 10394 | -5/Factory | Lost 10 parts (2p4n4u) 10398 | -5/Factory | Zion Light squad teleported in 10495 | -5/Factory | Fabricated Cmb. Airjet? 10520 | -5/Factory | Retrieved Zion intel report: Prototype Schematics 10549 | -5/Factory | Retrieved Zion intel report: Unaware Analyses 10550 | -5/Factory | Fabricated Cmb. Airjet? 10672 | -5/Factory | Fabricated P-70 Sage (x2) 10680 | -5/Factory | Build established: Messiah-Scout 10700 | -5/Factory | Incoming investigation squad redirected 10703 | -5/Factory | Sage 6b assimilated hostile W-25 Informer 10760 | -5/Factory | Fabricated P-70 Sage (x2) 10785 | -5/Factory | Entered Extension 10785 | -5/Extension | Accompanied by 5 allies 10928 | -5/Extension | Retrieved Zion intel report: Component Schematics 10966 | -5/Extension | Rescued a captive Derelict 10968 | -5/Extension | Rescued a captive Derelict 10968 | -5/Extension | Retrieved Zion intel report: Unaware Analyses 10979 | -5/Extension | Retrieved Zion intel report: Guard Positions 10982 | -5/Extension | Spotted B-75 Beast 10985 | -5/Extension | Rescued a captive Derelict 10985 | -5/Extension | Retrieved Zion intel report: Unaware Schematics 11063 | -5/Extension | Build established: Messiah-Ninja 11148 | -5/Extension | Sage 6d assimilated hostile W-25 Informer 11185 | -5/Extension | Warlord forces began an assault 11279 | -5/Extension | Spotted B-75 Beast 11298 | -5/Extension | Allies destroyed B-75 Beast 11311 | -5/Extension | Retrieved Zion intel report: Component Stockpiles 11311 | -5/Extension | Discovered exit to Factory (range 5) 11312 | -5/Extension | Zion Infowar Resupply teleported in 11314 | -5/Extension | Found Prototype Device 11314 | -5/Extension | Identified Exp. Terrain Scanner 11334 | -5/Extension | Rescued A7 11419 | -5/Extension | Discovered new exit (range 23) 11420 | -5/Extension | Discovered exit to Factory (range 22) 11451 | -5/Extension | Retrieved Zion intel report: Depthwide Sectors/0 11490 | -5/Extension | Build established: Messiah-Mutant 11495 | -5/Extension | Energy Cycler disabled 11495 | -5/Extension | Rescued a captive Derelict 11498 | -5/Extension | Rescued a captive Derelict 11509 | -5/Extension | Disrupted transfer network 11517 | -5/Extension | Identified exit to Cetus 11543 | -5/Extension | Entered Cetus 11543 | -5/Cetus | Accompanied by 8 allies 11548 | -5/Cetus | Acquired a Cetus Manufacturing Module code from A7 11551 | -5/Cetus | Spotted Cetus Guard 11551 | -5/Cetus | Spotted Cetus Guard 11551 | -5/Cetus | Spotted Cetus Guard 11551 | -5/Cetus | Spotted Cetus Guard 11559 | -5/Cetus | Allies destroyed Cetus Guard 11561 | -5/Cetus | Allies destroyed Cetus Guard 11561 | -5/Cetus | Allies destroyed Cetus Guard 11563 | -5/Cetus | Allies destroyed Cetus Guard 11590 | -5/Cetus | Started Cetus Manufacturing Module 11615 | -5/Cetus | Manufactured an Enhanced Grunt 11615 | -5/Cetus | Retrieved Zion intel report: Prototype Schematics 11618 | -5/Cetus | Retrieved Zion intel report: Prototype Stockpiles 11619 | -5/Cetus | Zion Light squad teleported in 11640 | -5/Cetus | Manufactured an Enhanced Grunt 11660 | -5/Cetus | Escorted A7 to Cetus Mainframe 11665 | -5/Cetus | Manufactured an Enhanced Grunt 11686 | -5/Cetus | Discovered new exit (range 22) 11690 | -5/Cetus | Manufactured an Enhanced Grunt 11700 | -5/Cetus | Identified exit to Archives 11715 | -5/Cetus | Manufactured an Enhanced Grunt 11759 | -5/Cetus | Entered Archives 11759 | -5/Archives | Accompanied by 16 allies 11764 | -5/Archives | Received a hacking code to weaken MAIN.C 11767 | -5/Archives | Met Zhirov 11767 | -5/Archives | Discovered new exit (range 22) 11770 | -5/Archives | Discovered new exit (range 21) 11773 | -5/Archives | Reinforcements dispatched to Archives 11773 | -5/Archives | Discovered exit to Factory (range 23) 11783 | -5/Archives | Identified exit to Hub_04(d) 11812 | -5/Archives | Zhirov detonated Archives 11816 | -5/Archives | Entered Hub_04(d) 11816 | -5/Hub_04(d) | Accompanied by 1 ally 11834 | -5/Hub_04(d) | Zion Recon squad teleported in 11948 | -5/Hub_04(d) | Discovered exit to Factory (range 14) 11960 | -5/Hub_04(d) | Retrieved Zion intel report: Active Garrisons 11961 | -5/Hub_04(d) | Zion Heavy squad teleported in 12031 | -5/Hub_04(d) | Network Hub disabled 12040 | -5/Hub_04(d) | Spotted Lightning 12049 | -5/Hub_04(d) | Spotted Lightning 12058 | -5/Hub_04(d) | Spotted Lightning 12058 | -5/Hub_04(d) | Spotted Lightning 12058 | -5/Hub_04(d) | Spotted Lightning 12058 | -5/Hub_04(d) | Spotted Lightning 12072 | -5/Hub_04(d) | Entered Factory 12072 | -4/Factory | Evolved 2 slots: Utility x2 12145 | -4/Factory | Incoming investigation squad redirected 12193 | -4/Factory | Discovered new exit (range 30) 12263 | -4/Factory | Discovered new exit (range 21) 12279 | -4/Factory | Identified exit to Research 12369 | -4/Factory | Retrieved Zion intel report: Active Garrisons 12370 | -4/Factory | Zion Heavy squad teleported in 12433 | -4/Factory | Found Prototype Protection 12433 | -4/Factory | Identified Zio. Weapon Casing 12612 | -4/Factory | Incoming investigation squad redirected 12640 | -4/Factory | Retrieved Zion intel report: Component Stockpiles 12646 | -4/Factory | Retrieved Zion intel report: Unaware Analyses 12697 | -4/Factory | Retrieved Zion intel report: Emergency Access 12768 | -4/Factory | Retrieved Zion intel report: Unaware Analyses 12769 | -4/Factory | Zion Heavy Resupply teleported in 12783 | -4/Factory | Spotted B-86 Titan 12807 | -4/Factory | Incoming investigation squad redirected 12822 | -4/Factory | First assault squad dispatched 12853 | -4/Factory | Garrison activated, responded to threat 12930 | -4/Factory | Core integrity fell below 50% 12939 | -4/Factory | Incoming assault squad redirected 12949 | -4/Factory | Lost 14 parts (2p4n7u1w) 12966 | -4/Factory | Incoming investigation squad redirected 12979 | -4/Factory | Discovered exit to Research (range 15) 13035 | -4/Factory | Zion Demo squad teleported in 13201 | -4/Factory | Found Quantum Capacitor 13217 | -4/Factory | Discovered new exit (range 28) 13223 | -4/Factory | Zion Kinetic Resupply teleported in 13286 | -4/Factory | Identified exit to Upper Caves 13287 | -4/Factory | Entered Upper Caves 13349 | -4/Upper Caves | Spotted B-86 Titan 13359 | -4/Upper Caves | Learned Research emergency access door positions 13408 | -4/Upper Caves | Discovered new exit (range 16) 13416 | -4/Upper Caves | Identified exit to Upper Caves 13417 | -4/Upper Caves | Entered another Upper Caves area 13423 | -4/Upper Caves | Learned Research emergency access door positions 13423 | -4/Upper Caves | Discovered exit to Research (range 9) 13439 | -4/Upper Caves | Lost 6 parts (1p1n3u1w) 13441 | -4/Upper Caves | Entered Research 13441 | -3/Research | Evolved 2 slots: Utility x1, Weapon x1 13551 | -3/Research | Lost 10 parts (1p4n2u3w) 13558 | -3/Research | Core integrity fell below 50% 13666 | -3/Research | Core integrity fell below 20% 13667 | -3/Research | Identified exit to Garrison 13671 | -3/Research | Lost 5 parts (1n2u2w) 13689 | -3/Research | Incoming assault squad redirected 13719 | -3/Research | Destroyed by Y-72 Warden with Quantum Rifle Last Messages --------------- 13675_ K-01 Serf collects debris. 13681_ Destroyed Adv. Heat Sink. 13681_ K-01 Serf collects debris. 13684_ P-80 Master destroyed. 13685_ K-01 Serf collects debris. 13686_ Dispersion Rifle destroyed. 13689_ ALERT: Higher priority target reported, redirecting assault. 13689_ K-01 Serf collects debris. 13692_ Critical hit. 13692_ Field Propulsion Array destroyed. 13692_ K-01 Serf collects debris. 13692_ Slammed into P-80 Master. 13694_ System corrupted: Matter fused (-6). 13694_ Slammed into P-80 Master. 13695_ P-80 Master destroyed. 13696_ K-01 Serf collects debris. 13697_ Acquired 14 matter. 13697_ K-01 Serf collects debris. 13710_ System corrupted: Matter fused (-5). 13714_ P-80 Master resets K-01 Serf, system corruption cleaned. Map ----- +----------------------------------------------------+ | ?????????????????????????????????????????????????? | | ?????????????????????????????????????????????????? | | ?????????????????????????????????????????????????? | | ?????????????????????????????????????????????????? | | ##### #???????????????????????????????????????? | | #???????????????????????????????????????? | | #???????????????????????????????????????? | | #???????????????????????????????????????? | | #???????????????????????????????????????? | | #########????????????????????????????????????????? | | ?????????????????????????????????????????????????? | | ?????????????????????????????????????????????????? | | ?????????????????????????????????????????????????? | | ?????????????????????????????????????????????????? | | ???????????# ??????????????????????????????????? | | ???????????# ??????????????????????????????????? | | ???????????# ??????????????????????????????????? | | ???????????# ??????????????????????????????????? | | ???????????# ??????????????????????????????????? | | ???????????# ??????##########??????????????????? | | ???????????? ??????# #??????????????????? | | ######?????? ??????# #??????????????????? | | +?????? ??????# #??#####???????????? | | #??????# #??????# #? #???????????? | | #??????# #??????# Y""" # #???????????? | | #?????## ##?????# @G" + #???????????? | | ####### ####### "" # ?????? | | / Rk/ ! k #? ?????? | | #?##### ####### #?? ??????? | | #?######+####???##########????#######???????? | | ##??# #???????????????????????????????? | | #???# ] #???????????????????????????????? | | ###???# #???????????????????????????????? | | ##?????# #???????????????????????????????? | | ????#########"####???????????????????????????????? | | ????# ] #???????????????????????????????? | | ????# ] #???????????????????????????????? | | ????# ] #???????????????????????????????? | | ????# ! #???????????????????????????????? | | ????# #???????????????????????????????? | | ????# +???????????????????????????????? | | ????# #???????????????????????????????? | | ##### +???????????????????????????????? | | / #???????????????????????????????? | | ##### #???????????????????????????????? | | ????# #???????????????????????????????? | | ????# #???????????????????????????????? | | ????##############???????????????????????????????? | | ?????????????????????????????????????????????????? | | ?????????????????????????????????????????????????? | +----------------------------------------------------+ Best States ------------- Heat Dissipation 74 Energy Generation 34 Energy Capacity 420 Matter Stores 300 Matter Capacity 300 Sight Range 23 Robot Scan Range 20 Terrain Scan Range 30 Terrain Scan Density 210 Jamming Range 12 Cloak Strength 5 Armor Coverage 675 Resistance: KI 25 Resistance: EM 25 Propulsion Shielding 66 Weapon Shielding 100 Melee Speed Boost 20 Phase Shifting 5 Evasion (%) 67 Targeting Accuracy 12 Melee Accuracy 6 Target Analysis 6 Core Analysis 8 Armor Integrity Analysis 66 Recoil Reduction 4 Offensive Hacking 22 Defensive Hacking 20 Item Schematics ----------------- Lrg. Storage Unit | -10/Materials | Hacked Cmb. Airjet | -7/Factory | Scanalyzed Lrn. Terrain Scanner | -7/Factory | Scanalyzed Combat Drone Bay | -7/Data Miner | Free Lgt. Regenerative Plating | -7/Data Miner | Free Exp. Sensor Array | -7/Data Miner | Free Exp. Terrain Scan Processor | -7/Data Miner | Free Enh. Coil Gun | -5/Factory | Z-intel Fusion Reactor | -5/Factory | Z-intel Hvy. Gatling Laser | -5/Factory | Z-intel Scatter Rocket Array | -5/Factory | Z-intel Lgt. Neutrino Core | -5/Factory | Z-intel Hpw. Electrolaser | -5/Factory | Z-intel Imp. Energy Well | -5/Factory | Z-intel Enh. Fission Core | -5/Factory | Z-intel Exp. Signal Interpreter | -5/Factory | Z-intel Hyp. Gauss Rifle | -5/Factory | Scanalyzed Plasma Cannon | -5/Extension | Z-intel Melee Analysis Suite | -5/Extension | Z-intel Flexi-carbon Leg | -5/Extension | Z-intel Component Analysis Suite | -5/Extension | Z-intel Adv. Melee Analysis Suite | -5/Extension | Z-intel Imp. System Shield | -5/Extension | Z-intel Power Amplifier | -5/Extension | Z-intel Imp. Focal Shield | -5/Extension | Z-intel Mace | -5/Extension | Z-intel Adv. Weight Redist. System | -5/Extension | Z-intel Imp. Propulsion Shielding | -5/Extension | Z-intel Com. Wheel | -5/Extension | Z-intel Lyr. Heavy Armor Plating | -5/Extension | Z-intel Mic. Fission Core | -5/Extension | Z-intel Hcp. Storage Unit | -5/Extension | Z-intel Arm. Medium Treads | -5/Extension | Z-intel F-cell Engine | -5/Cetus | Z-intel Prc. Shock Rifle | -5/Cetus | Z-intel Plasma Sword | -5/Cetus | Z-intel Shock Maul | -5/Cetus | Z-intel Enh. Flexi-carbon Leg | -5/Cetus | Z-intel Adv. Power Amplifier | -5/Cetus | Z-intel Mni. Assault Cannon | -5/Cetus | Z-intel Tri-rail Accelerator | -5/Cetus | Z-intel Cld. Gravmag System | -5/Cetus | Z-intel Cld. Fission Core | -5/Cetus | Z-intel Mni. Smartbomb Launcher | -5/Cetus | Z-intel Tesla Bomb Launcher | -5/Cetus | Z-intel Imp. KE Penetrator | -4/Factory | Scanalyzed HERF Cannon | -4/Factory | Scanalyzed Robot Schematics ------------------ S-27 Virus | -7/Data Miner | Free G-50 Soldier | -7/Data Miner | Free L-41 Fighter | -7/Data Miner | Free P-70 Sage | -7/Data Miner | Free I-36 Angel | -7/Data Miner | Free I-47 Archangel | -7/Data Miner | Free B-48 Gladiator | -5/Extension | Z-intel A-15 Conveyor | -5/Extension | Z-intel R-06 Scavenger | -5/Extension | Z-intel Y-64 Sentinel | -5/Extension | Z-intel K-01 Serf | -5/Extension | Z-intel Fabricated ------------ Cmb. Airjet | x2 | -5/Factory Cmb. Airjet | x2 | -5/Factory P-70 Sage | x2 | -5/Factory P-70 Sage | x2 | -5/Factory Alien Tech Used ----------------- None Achievements -------------- None Challenges ------------ None Game ------ Seed ElectronTacticalCoupler Manual? 0 Play Time 02:28:31 Cumulative 392.0 hours Start 2019.11.06 @ 01:00:23 End 2019.11.06 @ 13:11:03 Sessions 5 Manual Loads 0 Difficulty Rogue Special Mode None Game No. 301 Rogue 293 Adventurer 4 Explorer 0 Win Type - Total 30 Types 24/2/1/1/2/0/0 Lore% 92 Gallery% 93 Achievement% 87 Wizard Run 0 Options --------- ASCII 0 Keyboard 1 Movement Vi Keybinds 0 Fullscreen 0 Font 16/Terminus Map View 76x50 Tactical HUD 1 Map Filters NONE Filters NONE Steam 1 RUN: 82084841-5fc4-4370-9907-41898e16c138